Cogmind - Beta 17 @@@ ROGUE MODE // 2026.08.23 @ 11:56:09 Player: Clog Result: Destroyed by G-47 Trooper with Particle Gun Performance ------------- Evolutions (2) 1000 Regions Visited (3) 600 Robots Destroyed (36) 180 Value Destroyed (879) 879 Prototype IDs (17) 340 Alien Tech Used (0) 0 Bonus (0) 0 TOTAL SCORE: 2999 Bonus ------- None Cogmind --------- Core Integrity 0/550 Matter 239/300 Energy 85/100 System Corruption 0% Temperature Cool (18) Movement Walking (130) Location -8/Materials Parts ------- > --- POWER (1) -------- (None) > --- PROPULSION (4) --- Cargo Legs > --- UTILITY (4) ------ Large Storage Unit > --- WEAPON (2) ------- (None) > --- INVENTORY (15) --- Light Nuclear Core Light Treads Light Treads Carbon-fiber Leg Carbon-fiber Leg Makeshift Light Armor Plating Improved EM Shotgun Improved EM Shotgun High-powered Shotgun Gauss Rifle Grenade Launcher Peak State ------------ > --- POWER ------------ Light Nuclear Core > --- PROPULSION ------- Light Treads Light Treads Light Treads Light Treads > --- UTILITY ---------- Large Storage Unit Seismic Detector Reactive Plating > --- WEAPON ----------- Enhanced Autogun Gauss Rifle > --- INVENTORY -------- Subdweller Power Source Light Nuclear Core Light Treads Light Treads Carbon-fiber Leg Carbon-fiber Leg Cargo Legs Makeshift Light Armor Plating Improved EM Shotgun Improved EM Shotgun Grenade Launcher Grenade Launcher Mining Laser [Rating: 24] Favorites ----------- Power Light Ion Engine Engine Light Ion Engine Power Core Light Nuclear Core Propulsion Light Treads Treads Light Treads Leg Cargo Legs Utility Seismic Detector Device Seismic Detector Storage Large Storage Unit Protection Light Armor Plating Weapon Medium Laser Energy Gun Medium Laser Energy Cannon Subdweller Beam Cannon Ballistic Gun Assault Rifle Launcher Grenade Launcher Special Weapon Mining Laser Slashing Weapon Axe Build | -11 -10 -10 -8 ------- Run | Yrd Mat Sub Mat Slots Evolved 4 | . . . 4 Power . | . . . . Propulsion 2 | . . . 2 Utility 2 | . . . 2 Weapon . | . . . . Parts Attached 32 | 7 3 8 14 Power 4 | 1 . 1 2 Engine 3 | 1 . 1 1 Core 1 | . . . 1 Reactor . | . . . . Propulsion 7 | 2 . 1 4 Treads 6 | 2 . 1 3 Leg 1 | . . . 1 Wheel . | . . . . Hover . | . . . . Flight . | . . . . Utility 8 | 2 2 2 2 Device 3 | 1 . 2 . Storage 3 | 1 2 . . Processor . | . . . . Hackware . | . . . . Protection 2 | . . . 2 Artifact . | . . . . Weapon 13 | 2 1 4 6 Energy Gun 2 | 1 . . 1 Energy Cannon 1 | . . . 1 Ballistic Gun 6 | 1 . 2 3 Ballistic Cannon . | . . . . Launcher 2 | . 1 1 . Special Weapon 1 | . . 1 . Impact Weapon . | . . . . Slashing Weapon 1 | . . . 1 Piercing Weapon . | . . . . Special Melee Weapon . | . . . . Unidentified Prototypes 3 | . . 1 2 Parts Lost 15 | . . 2 13 Power 3 | . . 1 2 Propulsion 6 | . . 1 5 Utility 3 | . . . 3 Weapon 3 | . . . 3 Highest Loss Streak 10 | . . 1 10 To Critical Strikes . | . . . . Average Backups 10 | 4 9 11 12 Power 1 | . 1 . 1 Propulsion 4 | 2 4 5 4 Utility . | . . 1 1 Weapon 4 | 1 3 4 5 Tool/Special . | . . . . Unused Backups 10 | . 1 2 7 Power . | . . . . Propulsion 6 | . 1 1 4 Utility 1 | . . . 1 Weapon 3 | . . 1 2 Tool/Special . | . . . . Average Slot Usage (%) 96 | . 100 99 79 Engine 12 | . 14 13 6 Treads 28 | . 28 27 29 Device 13 | . 14 14 8 Storage 13 | . 14 14 9 Protection 1 | . . . 7 Energy Gun 11 | . 13 13 2 Ballistic Gun 12 | . 14 13 9 Peak Build Rating 24 | 7 8 16 24 Average Rating 10 | 5 7 10 16 On Entrance 6 | . 7 8 11 Avg Prop Armor Cover (%) . | . . . . Naked Turns . | . . . . Heaviest Build 43 | 15 30 32 43 Greatest Support 80 | 40 40 40 80 Greatest Overweight (x) 9 | . . . 9 Average Overweight (x) . | . . . . Largest Inventory Capacity 15 | 8 15 15 15 Average Capacity 13 | 7 12 15 15 Most Carried 15 | 6 12 15 15 Average Carried 12 | 4 9 14 13 Final Capacity 15 | 8 15 15 15 Final Carried 15 | 5 12 15 11 Transmogrified Parts 1 | . . 1 . Integrity Recovered 9 | . . 9 . Class Distribution -------------------- 94% | Mutant 5% | Scavenger-Mutant Dominant Class ---------------- Mutant | -10/Materials Mutant | -10/Subcaves Mutant | -8/Materials Resources | -11 -10 -10 -8 ----------- Run | Yrd Mat Sub Mat Matter Collected 836 | 281 159 228 168 Remotely . | . . . . Salvage Created 1135 | 77 160 356 542 Parts 76 | 12 19 19 26 Haulers Intercepted 2 | . 1 . 1 Recyclers Shooed 2 | . . . 2 Parts Field Recycled . | . . . . Retrieved Matter . | . . . . Parts Self-Destructed 11 | . . 11 . Prevented . | . . . . Parts Restored . | . . . . Kills | -11 -10 -10 -8 ------- Run | Yrd Mat Sub Mat Combat Hostiles Destroyed 25 | . 7 9 9 Guns 14 | . 3 8 3 Cannons 2 | . . . 2 AOE 9 | . 4 1 4 Classes Destroyed 10 | 1 3 2 4 Builder 1 | . . . 1 Tunneler 4 | 4 . . . Hauler 2 | . 1 . 1 Recycler 1 | . . . 1 Watcher 3 | . 2 . 1 Swarmer 10 | . 7 3 . Grunt 7 | . . 2 5 Sentry 2 | . . . 2 Hunter 2 | . . . 2 Subdweller 4 | . . 4 . Best Kill Streak 6 | 2 3 3 6 Combat Bots Only 4 | . 3 3 4 Max Kills in Single Turn 4 | 1 3 2 4 Gunslinging . | . . . . Exploded 3 | . 3 1 3 Melee . | . . . . Uniques/NPCs Destroyed . | . . . . Combat | -11 -10 -10 -8 -------- Run | Yrd Mat Sub Mat Hostile Shots Fired 215 | . 25 36 154 Missed 56 | . 6 10 40 Hits 159 | . 19 26 114 Projectile 159 | . 19 26 114 Critical Strikes 5 | . . . 5 Damage Taken 2519 | . 140 459 1920 Core 665 | . 7 106 552 Absorbed by Shields . | . . . . Ignored by Resistances 54 | . . . 54 Core Remaining (%) 77 | 100 . 54 . Volleys Fired 95 | 7 18 33 37 Largest 2 | 2 2 2 2 Hottest 110 | 70 70 100 110 Shots Fired 152 | 14 32 48 58 Gun 110 | 14 28 34 34 Cannon 19 | . . . 19 Launcher 10 | . 4 1 5 Special 13 | . . 13 . Kinetic 71 | 7 15 19 30 Thermal 67 | 7 13 28 19 Explosive 10 | . 4 1 5 Electromagnetic 4 | . . . 4 Robot Hit Streak 11 | 9 5 11 9 Robot Miss Streak 5 | 2 5 2 2 Penetration Max 1 | . . . 1 Secondary Targets 1 | . 1 . . Max Gunslinging Chain 1 | . 1 . . Shots Hit Robots 88 | 10 12 25 41 Core Hits 61 | 4 12 16 29 Critical Kills . | . . . . Critical Parts Destroyed . | . . . . Critical Strikes 2 | 1 . 1 . Burn 2 | 1 . 1 . Melee Attacks 1 | . . . 1 Impact . | . . . . Slashing 1 | . . . 1 Piercing . | . . . . Sneak Attacks . | . . . . Combat Hostiles . | . . . . Follow-up Attacks . | . . . . Damage Inflicted 2077 | 140 311 408 1218 Guns 1141 | 136 152 370 483 Cannons 303 | . . . 303 Explosions 629 | . 159 38 432 Melee . | . . . . Ramming 4 | 4 . . . Kinetic 749 | 61 52 209 427 Thermal 639 | 75 100 161 303 Explosive 629 | . 159 38 432 Electromagnetic 56 | . . . 56 Impact . | . . . . Slashing . | . . . . Piercing . | . . . . Highest Corruption 1 | . 1 1 . Average Corruption 1 | . 1 1 . Corruption Purged 1 | . . 1 . Corruption Blocked . | . . . . Effects 4 | . 2 2 . Message Errors 2 | . . 2 . Matter Fused 1 | . 1 . . Misfires 1 | . 1 . . Overload Shots . | . . . . Overflow Damage . | . . . . Projectiles . | . . . . Explosions . | . . . . Melee . | . . . . Knockbacks . | . . . . Impact . | . . . . Kinetic . | . . . . Secondary . | . . . . Self-Inflicted Damage 9 | . . . 9 Shots 1 | . . . 1 Rammed 2 | 1 1 . . Targets Rammed 2 | 1 1 . . Kicked . | . . . . Crushed . | . . . . Highest Temperature 273 | 18 45 12 273 Average Temperature 68 | 9 16 5 98 Received Heat Transfer 828 | . . 90 738 Effects 2 | . . . 2 Interference 2 | . . . 2 Siege Activations . | . . . . Martial Activations . | . . . . Shielding Activations . | . . . . Robots Disrupted . | . . . . Combat Hostiles . | . . . . Robots Corrupted . | . . . . Combat Hostiles . | . . . . Parts Fried . | . . . . Impact Corruptions . | . . . . Robots Melted . | . . . . Combat Hostiles . | . . . . Parts Melted 5 | 2 . 3 . Heat Transferred 1554 | 296 296 555 407 Parts Sabotaged . | . . . . Parts Stolen . | . . . . Parts Stripped . | . . . . Power Chain Reactions . | . . . . Alert | -11 -10 -10 -8 ------- Run | Yrd Mat Sub Mat Maximum Alert Level . | . . . . Low Security (%) 100 | 100 100 . 100 Level 1 . | . . . . Level 2 . | . . . . Level 3 . | . . . . Level 4 . | . . . . Level 5 . | . . . . High Security . | . . . . Max Security . | . . . . Peak Influence 127 | 5 107 . 127 Initial 21 | . . . 21 Average 24 | . 29 . 24 Influence Increases 667 | 20 234 120 293 Destroy 0b10 Robot/C 420 | . 140 100 180 Destroy 0b10 Robot/NC 55 | 20 15 . 20 Destroy Leader 110 | . 26 20 64 Successful Hack 18 | . 12 . 6 Destroy Structure 49 | . 26 . 23 Lose Combat Pursuer 15 | . 15 . . Influence Decreases 637 | 20 214 98 305 Entered New Map 31 | . . 10 21 Time Decay 495 | 20 214 88 173 Lost Part 101 | . . . 101 Lost Ally 10 | . . . 10 Squads Dispatched 4 | . . . 4 Investigation 1 | . . . 1 Extermination . | . . . . Reinforcement 3 | . . . 3 Assault . | . . . . Garrison . | . . . . Intercept . | . . . . Searches Triggered . | . . . . Construction Impeded 1 | . . . 1 Haulers Reinforced . | . . . . Active Scanning Responses . | . . . . Cargo Convoy Interrupts . | . . . . Stealth | -11 -10 -10 -8 --------- Run | Yrd Mat Sub Mat Distress Signals . | . . . . Communications Jammed . | . . . . Distress Signals . | . . . . Times Spotted 43 | . 14 9 20 Peak Tracking Total 10 | . 4 3 10 Tactical Retreats 1 | . 1 . . Traps | -11 -10 -10 -8 ------- Run | Yrd Mat Sub Mat Traps Triggered 3 | . 1 1 1 Indirectly . | . . . . Trap Hack Attempts . | . . . . Triggered . | . . . . Disarmed . | . . . . Reprogrammed . | . . . . Reused . | . . . . Traps Extracted . | . . . . Installed . | . . . . Triggered . | . . . . Most Traps Carried 2 | . . 2 . Machines | -11 -10 -10 -8 ---------- Run | Yrd Mat Sub Mat Machines Disabled 1 | . . 1 . Max in Single Turn 1 | . . 1 . Machines Repaired . | . . . . Machines Dismantled . | . . . . Machines Sabotaged . | . . . . Overloaded Fab Kills . | . . . . Hacking | -11 -10 -10 -8 --------- Run | Yrd Mat Sub Mat Machines Accessed 11 | . 6 2 3 Terminals 8 | . 6 . 2 Fabricators . | . . . . Repair Stations . | . . . . Recycling Units . | . . . . Scanalyzers 1 | . . . 1 Garrison Access . | . . . . Total Hacks 19 | . 9 4 6 Successful 13 | . 6 4 3 Failed 5 | . 3 . 2 Catastrophic 1 | . . . 1 Database Lockouts 1 | . . . 1 Manual 12 | . 9 . 3 Terminals 12 | . 9 . 3 Fabricators . | . . . . Repair Stations . | . . . . Recycling Units . | . . . . Scanalyzers 3 | . . . 3 Garrison Access . | . . . . Terminal Hacks 5 | . 1 4 . Record 3 | . . 3 . Branch Access Points 1 | . 1 . . Proto ID Catalog 1 | . . 1 . Fabricator Hacks . | . . . . Repair Station Hacks . | . . . . Recycling Unit Hacks . | . . . . Scanalyzer 2 | . . . 2 Retrieve Study 2 | . . . 2 Garrison Access Hacks . | . . . . Unauthorized Hacks 6 | . 5 . 1 Terminals 6 | . 5 . 1 Assimilate 1 | . . . 1 Skim 5 | . 5 . . Fabricators . | . . . . Repair Stations . | . . . . Recycling Units . | . . . . Scanalyzers . | . . . . Garrison Access . | . . . . Data Cores Recovered . | . . . . Used . | . . . . Hacking Detections 5 | . 3 . 2 Full Trace Events . | . . . . Feedback Events . | . . . . Feedback Blocked . | . . . . Robot Schematics Acquired . | . . . . Robots Built . | . . . . Authchips . | . . . . Time . | . . . . Total Robot Build Rating . | . . . . Part Schematics Acquired . | . . . . Parts Built . | . . . . Authchips . | . . . . Time . | . . . . Total Part Build Rating . | . . . . Part Studies Acquired 2 | . . . 2 Parts Repaired . | . . . . Time . | . . . . Parts Recycled . | . . . . Recycled Matter . | . . . . Retrieved Matter . | . . . . Retrieved Components . | . . . . Parts Scanalyzed . | . . . . Part Schematics Acquired . | . . . . Parts Damaged . | . . . . Bothacking | -11 -10 -10 -8 ------------ Run | Yrd Mat Sub Mat Used RIF Installer . | . . . . Robots Hacked . | . . . . Non-combat . | . . . . Combat . | . . . . Robot Hacks Applied . | . . . . Relay Couplers Released . | . . . . Fabnet Peak Effective % . | . . . . Robots Rewired . | . . . . Allies Hacked . | . . . . Hacks Repelled . | . . . . Allies | -11 -10 -10 -8 -------- Run | Yrd Mat Sub Mat Total Allies 1 | . . . 1 Largest Group 1 | . . . 1 Highest-Rated Group 10 | . . . 10 Highest-Rated Ally 10 | . . . 10 Total Orders . | . . . . Ally Attacks . | . . . . Total Damage . | . . . . Kills . | . . . . Allies Corrupted . | . . . . Allies Melted . | . . . . Intel | -11 -10 -10 -8 ------- Run | Yrd Mat Sub Mat Active Infowar (turns) 2569 | 33 811 1358 367 Seismic 2569 | 33 811 1358 367 Robot Analysis Total . | . . . . Derelict Logs Recovered 1 | . . 1 . Drone Launches . | . . . . Drone Recoveries . | . . . . Exploration | -11 -10 -10 -8 ------------- Run | Yrd Mat Sub Mat Turns Passed 2815 | 204 811 1363 437 Spaces Moved 1491 | 109 459 745 178 Core 13 | 10 . . 3 Treads 1478 | 99 459 745 175 Legs . | . . . . Wheels . | . . . . Hover . | . . . . Flight . | . . . . Fastest Speed 50 | 50 160 160 160 Average Speed 160 | 149 160 160 166 Slowest Speed 500 | 160 160 160 500 Overloaded Moves . | . . . . Propulsion Burnouts . | . . . . Robots Hopped . | . . . . Potential Cave-ins 2 | . . . 2 Cave-ins Triggered . | . . . . Exploration Rate (%) 40 | 4 80 55 21 Regions Visited 3 Branch Regions 1 Pre-discovered Areas 2 | . 2 . . Known Exits Taken 1 | . 1 . . Unknown Exits Taken 2 | 1 . 1 . Scrap Searched 4 | . . 4 . Spaces Dug 1 | . . . 1 Terrain Destroyed 60 | . 30 1 29 Melee 1 | . . . 1 Projectile 7 | . . . 7 AOE 52 | . 30 1 21 Terrain Rammed . | . . . . Walls Destroyed . | . . . . Machines Disabled . | . . . . Actions | -11 -10 -10 -8 --------- Run | Yrd Mat Sub Mat Total 1744 | 135 503 841 265 Wait 48 | . 5 27 16 Move 1488 | 108 458 744 178 Hop . | . . . . Pick Up 42 | 12 10 11 9 Fast Attach 4 | . . 2 2 Attach 20 | 7 . 2 11 Detach 5 | . . 1 4 Swap 22 | . 7 13 2 Drop 17 | . 4 8 5 Fire 95 | 7 18 33 37 Melee 1 | . . . 1 Ram . | . . . . Kick . | . . . . Crush 2 | 1 1 . . Escape Stasis . | . . . . Rewire . | . . . . Trap . | . . . . Miscellaneous . | . . . . Route ------- -11/Scrapyard -10/Materials (discovered 5 exits: [*Mat x3] / *Min / *Sub) -10/Subcaves -8/Materials (discovered 1 exit: [*Fac]) History --------- Turn | Location | Event 16 | -11/Scrapyard | Discovered new exit (range 15) 205 | -11/Scrapyard | Entered Materials 302 | -10/Materials | Build established: Mutant 448 | -10/Materials | Discovered new exit (range 4) 633 | -10/Materials | Learned Storage trap positions 641 | -10/Materials | Discovered new exit (range 10) 687 | -10/Materials | Learned 2 Storage zone layouts 714 | -10/Materials | Discovered new exit (range 7) 728 | -10/Materials | Identified exit to Mines 731 | -10/Materials | Learned location of 2 exits from Mines 765 | -10/Materials | Learned location of Storage (-7) 790 | -10/Materials | Learned location of Recycling (-7) 831 | -10/Materials | Identified exit to Subcaves 849 | -10/Materials | Discovered new exit (range 7) 912 | -10/Materials | Learned Storage non-interactive machine intel 1016 | -10/Materials | Entered Subcaves 1017 | -10/Subcaves | Approached by a straggling Scientist 1107 | -10/Subcaves | Visited 4L-MR0's lab 1121 | -10/Subcaves | Found Prototype Device 1122 | -10/Subcaves | Identified Sfc. Transmogrifier 1134 | -10/Subcaves | Found Cargo Legs 1341 | -10/Subcaves | Shifting Twisted Machinery released Battle Rifle 1445 | -10/Subcaves | Shifting Twisted Machinery released Shrapnel Trap 1859 | -10/Subcaves | Learned Materials emergency access door positions 1867 | -10/Subcaves | Visited Clippyterm 1871 | -10/Subcaves | Learned Research machine intel 2239 | -10/Subcaves | Shifting Twisted Machinery released Mak. System Restoration Module 2363 | -10/Subcaves | Discovered new exit (range 10) 2379 | -10/Subcaves | Entered Materials 2379 | -8/Materials | Evolved 4 slots: Propulsion x2, Utility x2 2446 | -8/Materials | Central database locked down 2789 | -8/Materials | Discovered new exit (range 11) 2801 | -8/Materials | Core integrity fell below 50% 2812 | -8/Materials | Core integrity fell below 20% 2816 | -8/Materials | Destroyed by G-47 Trooper with Particle Gun Last Messages --------------- 02798_ U-05 Engineer lays Concrete. 02799_ Acquired 5 matter. 02799_ U-05 Engineer lays Concrete. 02800_ Lgt. Treads+ destroyed. 02800_ U-05 Engineer lays Concrete. 02800_ K-01 Serf collects debris. 02801_ U-05 Engineer lays Concrete. 02804_ K-01 Serf collects debris. 02805_ U-05 Engineer lays Concrete. 02808_ K-01 Serf collects debris. 02808_ U-05 Engineer lays Concrete. 02808_ Sub. Power Source destroyed. 02808_ Critical hit (Burn: +37). 02809_ K-01 Serf collects debris. 02810_ U-05 Engineer builds a Wall. 02811_ K-01 Serf collects debris. 02811_ Axe destroyed. 02812_ K-01 Serf collects debris. 02815_ G-47 Trooper suffers critical hit (Burn). 02816_ K-01 Serf collects debris. Map ----- +----------------------------------------------------+ | | | | | | | | | | | | | | | | | | | | | | | | | | | ?????????????????????????????????????????????????? | | ?????????????????????????????????????????????????? | | ?????????????????????????????????????????????????? | | ?????????????????????????????????????????????????? | | ?????????????????????????????????????????????????? | | ?????????????????????????????????????????????????? | | ?????????????????????????????????????????????????? | | ????????????????????????#####????????????????????? | | ????????????????????????# #?? ???#?????????????? | | ????????????????????????# < #?? "" #?????????????? | | ????????????????????????# #?? T" +?????????????? | | ????????????????????????# +?? "" #?????????????? | | ????????????????????????#@ g#?? #?????????????? | | ???????????????????????## #?? ###???????????? | | ???????????????????????#; g#### # #####???????? | | ???????????????????????# g """T"""###?????? | | ???????????????????????# gg % = // #?????? | | ???????????????????????; g % // #?????? | | ???????????????????# ###% H %k #?????? | | ???????????????????+ # # % #?????? | | ???????????????????# ##### % # #?????? | | ???????????????????# ????# #?????? | | ???????????????????+ ????### #####?? | | ???????????????????#### ??????### | | ??????????????????????# ????????# % """ | | ??????????????????????# ????????# % """ | | ??????????????????????# ????????# % """ #### | | ??????????????????????#+######### #???? ? | | ??????????????????????#% # #?????? | | ??????????????????????# # """ #?????? | | ???????????????? # # """ #?????? | | ???????????????? + +% """ #?????? | | ??????????????????????# # #?????? | | ??????????????????????# """ """ # #?????? | | ??????????????????????# """ """ # """ #?????? | | ??????????????????#???# """ """ # """ #?????? | | ??????????????????# ########### """ #####?? | +----------------------------------------------------+ Best States ------------- Heat Dissipation 31 Energy Generation 15 Energy Capacity 250 Matter Stores 300 Matter Capacity 300 Sight Range 16 Terrain Scan Density 10 Armor Coverage 150 Resistance: KI 20 Evasion (%) 50 Recoil Reduction 4 Item Schematics ----------------- None Robot Schematics ------------------ None Fabricated ------------ Nothing Repaired ---------- Nothing Studied --------- Lgt. Treads | -8/Materials | Hacked Grenade Launcher | -8/Materials | Hacked Alien Tech Used ----------------- None Achievements -------------- None Challenges ------------ None Game ------ Seed ConstructRiotBooster Manual? 0 Play Time 00:20:55 Cumulative 33.2 hours Start 2026.08.23 @ 11:35:52 End 2026.08.23 @ 11:56:09 Sessions 1 Manual Loads 0 Difficulty Rogue Special Mode None Game No. 37 Rogue 34 Adventurer 3 Explorer 0 Win Type - Total 1 Types 1/0/0/0/0/0/0/0/0/0 Lore% 30 Gallery% 28 Achievement% 30 Wizard Run 0 Options --------- Layout 1 ASCII 0 Keyboard 0 Movement Mouse Keybinds 0 Fullscreen 1 Font 32/SmallcapsGlow Map View 50x35 Zoom Use 0% Tactical HUD 1 Map Filters NONE Filters NONE Steam 1 RUN: dcfbf548-f261-4b0f-b040-599898806142